[Event "58th Akiba Rubinstein C 2022"]
[Site "Polanica-Zdroj"]
[Date "2022.08.21"]
[Round "9.11"]
[White "Mazalon, Mariusz"]
[Black "Twarogiel, Tadeusz"]
[Result "1-0"]
[ECO "A09"]
[WhiteElo "1994"]
[BlackElo "1767"]
[Annotator "NA RC"]
[PlyCount "69"]
[EventDate "2022.08.13"]
[EventCountry "POL"]
[SourceTitle "playchess.com"]
[Source "ChessBase"]
[SourceQuality "1"]
[TimeControl "40/5400+30:1800+30"]

1. Nf3 {[%emt 0:00:03]} d5 {[%emt 0:00:22]} 2. c4 {[%emt 0:00:18]} d4 {[%emt 0:00:16]} 3. g3 {[%emt 0:01:24]} c5 {[%emt 0:00:30]} 4. b4 {[%emt 0:01:42]} b6 {[%emt 0:00:33]} 5. Bg2 {[%emt 0:00:20]} Bb7 {[%emt 0:00:09]} 6. O-O {[%emt 0:00:17]} Nd7 {[%emt 0:00:35]} 7. d3 {[%emt 0:00:48]} e5 {[%emt 0:01:00]} 8. b5 {[%emt 0:00:40]} Bd6 {[%emt 0:03:21]} 9. e4 {[%emt 0:02:26]} Ne7 {[%emt 0:00:41]} 10. Nh4 {[%emt 0:01:13]} O-O {[%emt 0:03:07]} 11. f4 {[%emt 0:00:42]} f6 {[%emt 0:01:08]} 12. Bh3 {[%emt 0:01:42]} g6 {[%emt 0:01:44]} 13. Be6+ {[%emt 0:05:55]} Kg7 {[%emt 0:02:26] [#]} 14. Qg4 {[%emt 0:05:36]} (14. f5 $1 $18 {[%cal Rf5g6]} g5 15. Qg4 (15. Qh5 Qe8 $14)) 14... Nb8 $18 {[%emt 0:01:50]} ({Much less strong is} 14... h5 15. Qh3 Bc8 16. f5 $16) (14... f5 $1 $11 15. Nxf5+ Nxf5) 15. f5 {[%emt 0:04:12]} Bc8 {[%emt 0:00:41]} 16. Nxg6 {[%emt 0:13:43]} hxg6 {[%emt 0:01:39]} 17. Bd5 {[%emt 0:09:35]} Nxd5 {[%emt 0:08:00]} 18. Qxg6+ {[%emt 0:10:42]} Kh8 {[%emt 0:02:28]} 19. Qh5+ {[%emt 0:05:12]} Kg8 {[%emt 0:00:11]} 20. Bh6 {[%emt 0:01:51]} Qe7 {[%emt 0:00:33]} 21. Bxf8 {[%emt 0:00:30]} Qxf8 {[%emt 0:00:33]} 22. exd5 {[%emt 0:00:16]} Bd7 {[%emt 0:01:09]} 23. Nd2 {[%emt 0:00:11]} Be8 {[%emt 0:01:18]} 24. Qh4 {[%emt 0:04:21]} Qg7 {[%emt 0:05:00]} 25. Ne4 {[%emt 0:00:14]} Be7 {[%emt 0:00:01]} 26. g4 {[%emt 0:00:41]} Nd7 {[%emt 0:01:30]} 27. Kh1 {[%emt 0:00:11]} a5 {[%emt 0:01:52]} 28. Rf3 {[%emt 0:00:29]} Qh7 {[%emt 0:01:49]} 29. Qf2 {[%emt 0:00:14]} Qh6 {[%emt 0:02:36]} 30. Rg1 {[%emt 0:00:31]} Nf8 {[%emt 0:02:26]} 31. g5 {[%emt 0:04:17]} fxg5 {[%emt 0:00:29]} 32. f6 Bh5 {[%emt 0:03:41]} 33. fxe7 {[%emt 0:01:43]} Bxf3+ {[%emt 0:00:43]} 34. Qxf3 {[%emt 0:00:05]} Ng6 {[%emt 0:00:29]} 35. Rxg5 1-0

[Event "58th Akiba Rubinstein C 2022"]
[Site "Polanica-Zdroj"]
[Date "2022.08.21"]
[Round "9.12"]
[White "Wziatek, Marek"]
[Black "Wielgus, Jerzy"]
[Result "1/2-1/2"]
[ECO "A15"]
[WhiteElo "1617"]
[BlackElo "1832"]
[Annotator "NA RC"]
[PlyCount "41"]
[EventDate "2022.08.13"]
[EventCountry "POL"]
[SourceTitle "playchess.com"]
[Source "ChessBase"]
[SourceQuality "1"]
[TimeControl "40/5400+30:1800+30"]

1. c4 {[%emt 0:00:06]} Nf6 {[%emt 0:00:19]} 2. g3 {[%emt 0:00:25]} c6 {[%emt 0:00:13]} 3. Bg2 {[%emt 0:01:04]} d5 {[%emt 0:00:10]} 4. Nf3 {[%emt 0:00:52]} dxc4 {[%emt 0:01:50]} 5. O-O {[%emt 0:01:36]} Nbd7 {[%emt 0:00:43]} 6. Qc2 {[%emt 0:00:26]} g6 {[%emt 0:02:13]} 7. Qxc4 {[%emt 0:00:26]} Bg7 {[%emt 0:00:26]} 8. d4 {[%emt 0:00:27]} O-O {[%emt 0:00:18]} 9. Qc2 {[%emt 0:02:29]} Re8 {[%emt 0:06:31]} 10. Rd1 {[%emt 0:00:27]} Qa5 {[%emt 0:05:33]} 11. h3 {[%emt 0:08:07]} e5 {[%emt 0:01:15]} 12. Bd2 {[%emt 0:00:42]} Qb6 {[%emt 0:00:38]} 13. Bc3 {[%emt 0:05:43]} Nd5 {[%emt 0:03:48]} 14. e3 {[%emt 0:03:57]} Nxc3 {[%emt 0:01:59]} 15. Nxc3 {[%emt 0:00:23]} exd4 {[%emt 0:00:15]} 16. Nxd4 {[%emt 0:00:15]} Ne5 {[%emt 0:01:52]} 17. Na4 {[%emt 0:05:10]} Qb4 {[%emt 0:06:22]} 18. a3 {[%emt 0:00:56]} Qc4 {[%emt 0:00:30]} 19. Rac1 Qxc2 {[%emt 0:00:22]} 20. Rxc2 {[%emt 0:01:00]} h6 {[%emt 0:11:08]} 21. Kh2 {[%emt 0:02:35]} 1/2-1/2

[Event "58th Akiba Rubinstein C 2022"]
[Site "Polanica-Zdroj"]
[Date "2022.08.21"]
[Round "9.13"]
[White "Chubar, Vladimir"]
[Black "Swierczynski, Stanislaw"]
[Result "1-0"]
[ECO "D00"]
[WhiteElo "1809"]
[BlackElo "1626"]
[Annotator "NA RC"]
[PlyCount "59"]
[EventDate "2022.08.13"]
[EventCountry "POL"]
[SourceTitle "playchess.com"]
[Source "ChessBase"]
[SourceQuality "1"]
[TimeControl "40/5400+30:1800+30"]

1. d4 {[%emt 0:10:41]} d5 {[%emt 0:00:10]} 2. Bf4 {[%emt 0:00:07]} Bf5 {[%emt 0:00:27]} 3. e3 {[%emt 0:00:24]} e6 {[%emt 0:00:09]} 4. c4 {[%emt 0:00:19]} Bd6 {[%emt 0:00:19]} 5. Bxd6 {[%emt 0:02:03]} Qxd6 {[%emt 0:00:40]} 6. Qb3 {[%emt 0:01:21]} Qb6 {[%emt 0:00:41]} 7. c5 {[%emt 0:02:24]} Qxb3 {[%emt 0:00:12]} 8. axb3 {[%emt 0:00:08]} Nf6 {[%emt 0:00:44]} 9. Nc3 {[%emt 0:00:15]} c6 {[%emt 0:02:12]} 10. b4 {[%emt 0:02:18]} Nbd7 {[%emt 0:01:04]} 11. b5 {[%emt 0:00:44]} Ke7 {[%emt 0:00:31]} 12. Nf3 {[%emt 0:01:52]} h6 {[%emt 0:01:53]} 13. Be2 {[%emt 0:02:35]} Rhe8 {[%emt 0:01:49]} 14. O-O {[%emt 0:00:17]} Kf8 {[%emt 0:00:07]} 15. bxc6 {[%emt 0:02:07]} bxc6 {[%emt 0:00:03]} 16. Ra6 {[%emt 0:00:08]} Reb8 {[%emt 0:03:24]} 17. Na4 {[%emt 0:09:03]} Rb4 {[%emt 0:00:38]} 18. h3 {[%emt 0:00:58]} Bc2 {[%emt 0:04:58]} 19. Ra1 {[%emt 0:05:20]} Bxa4 {[%emt 0:04:51]} 20. R1xa4 {[%emt 0:05:47]} Rxb2 {[%emt 0:00:42]} 21. Bd3 {[%emt 0:02:56]} Rb3 {[%emt 0:03:20]} 22. Ne1 {[%emt 0:02:15]} e5 {[%emt 0:01:02]} 23. Bf5 {[%emt 0:00:33]} exd4 {[%emt 0:00:42]} 24. exd4 {[%emt 0:00:40]} Re8 {[%emt 0:01:08]} 25. Nf3 {[%emt 0:00:19]} Rb2 {[%emt 0:01:14]} 26. Rxa7 {[%emt 0:01:49]} Nb8 {[%emt 0:02:14]} 27. Ne5 {[%emt 0:01:34]} Re7 {[%emt 0:00:22]} 28. Nf3 Re8 29. Ne5 Re7 30. Rxe7 1-0

[Event "58th Akiba Rubinstein C 2022"]
[Site "Polanica-Zdroj"]
[Date "2022.08.21"]
[Round "9.14"]
[White "Bartczak, Hanna"]
[Black "Krasowski, Slawomir"]
[Result "0-1"]
[ECO "A45"]
[WhiteElo "1479"]
[BlackElo "1855"]
[Annotator "NA RC"]
[PlyCount "74"]
[EventDate "2022.08.13"]
[EventCountry "POL"]
[SourceTitle "playchess.com"]
[Source "ChessBase"]
[SourceQuality "1"]
[TimeControl "40/5400+30:1800+30"]

1. d4 {[%emt 0:01:37]} Nf6 {[%emt 0:00:17]} 2. Nc3 {[%emt 0:00:08]} d5 {[%emt 0:00:24]} 3. Bf4 {[%emt 0:00:15]} g6 {[%emt 0:00:45]} 4. e3 {[%emt 0:00:37]} Nh5 {[%emt 0:00:27]} 5. Nf3 {[%emt 0:00:32]} Nxf4 {[%emt 0:00:31]} 6. exf4 {[%emt 0:00:06]} c6 {[%emt 0:00:18]} 7. g3 {[%emt 0:00:34]} Bg7 8. Bg2 {[%emt 0:03:40]} Bg4 {[%emt 0:01:11]} 9. O-O {[%emt 0:00:43]} Bxf3 {[%emt 0:02:04]} 10. Bxf3 {[%emt 0:03:22]} Qb6 {[%emt 0:00:15]} 11. Ne2 {[%emt 0:01:24]} Qxb2 {[%emt 0:00:26]} 12. Qd3 {[%emt 0:03:56]} Qb6 {[%emt 0:00:51]} 13. Rfb1 {[%emt 0:00:17]} Qc7 {[%emt 0:00:17]} 14. a4 {[%emt 0:00:45]} b6 15. Rb3 {[%emt 0:02:25]} e6 {[%emt 0:02:26]} 16. Rab1 {[%emt 0:00:21]} O-O {[%emt 0:00:40]} 17. c4 {[%emt 0:00:24]} Qd6 {[%emt 0:02:32]} 18. Rc1 {[%emt 0:10:37]} Rd8 {[%emt 0:02:53]} 19. c5 {[%emt 0:00:24]} bxc5 {[%emt 0:02:01]} 20. Rxc5 {[%emt 0:03:42]} Nd7 {[%emt 0:00:59]} 21. Rc1 {[%emt 0:03:59]} c5 {[%emt 0:01:16]} 22. Qb1 {[%emt 0:03:00]} c4 {[%emt 0:01:01]} 23. Rb7 {[%emt 0:03:59]} Rab8 {[%emt 0:00:40]} 24. Rc2 {[%emt 0:01:10]} Rxb7 {[%emt 0:01:31]} 25. Qxb7 {[%emt 0:00:09]} Qb8 {[%emt 0:05:25]} 26. Rb2 {[%emt 0:01:35]} Nb6 {[%emt 0:01:40]} 27. Qxb8 {[%emt 0:00:14]} Rxb8 {[%emt 0:00:01]} 28. a5 {[%emt 0:00:09]} Nd7 {[%emt 0:00:08]} 29. Rxb8+ {[%emt 0:04:23]} Nxb8 {[%emt 0:00:02]} 30. g4 {[%emt 0:00:09]} Nc6 {[%emt 0:00:29]} 31. f5 {[%emt 0:00:22]} Nxa5 {[%emt 0:00:34]} 32. fxe6 {[%emt 0:03:37]} fxe6 {[%emt 0:00:19]} 33. Kf1 {[%emt 0:01:37]} Nc6 {[%emt 0:00:25]} 34. Nf4 {[%emt 0:00:45]} Nxd4 {[%emt 0:00:23]} 35. Bd1 {[%emt 0:00:32]} Nc6 36. Bf3 Nd4 37. Bd1 c3 0-1